[Event "Early-Titled-Tuesday-Blitz-May-07-2024"]
[Site "Chess.com"]
[Date "2024.05.07"]
[Round "10"]
[White "FXDon77"]
[Black "h4parah5"]
[Result "0-1"]
[WhiteElo "2886"]
[BlackElo "3027"]
[TimeControl "180+1"]
[EndTime "10:04:04 PDT"]
[Termination "h4parah5 won by resignation"]

1. e4 {[%clk 0:03:00.9]} 1... c5 {[%clk 0:02:59.9]} 2. Nf3 {[%clk 0:03:00.9]}
2... Nc6 {[%clk 0:03:00.1]} 3. Bb5 {[%clk 0:03:01.2]} 3... e6 {[%clk 0:03:00.1]}
4. O-O {[%clk 0:02:59.4]} 4... Nge7 {[%clk 0:02:59.6]} 5. d4 {[%clk 0:02:59.7]}
5... cxd4 {[%clk 0:02:58.7]} 6. Nxd4 {[%clk 0:03:00.6]} 6... a6 {[%clk
0:02:59.2]} 7. Nxc6 {[%clk 0:02:58.7]} 7... Nxc6 {[%clk 0:02:44.9]} 8. Bxc6
{[%clk 0:02:58]} 8... bxc6 {[%clk 0:02:42.5]} 9. c4 {[%clk 0:02:55.2]} 9... c5
{[%clk 0:02:41.4]} 10. Qg4 {[%clk 0:02:34.3]} 10... Bb7 {[%clk 0:02:40.7]} 11.
Nc3 {[%clk 0:02:31.9]} 11... h5 {[%clk 0:02:40.4]} 12. Qg3 {[%clk 0:02:31.8]}
12... h4 {[%clk 0:02:33.6]} 13. Qg4 {[%clk 0:02:31.4]} 13... h3 {[%clk
0:02:33.7]} 14. g3 {[%clk 0:02:29]} 14... Qf6 {[%clk 0:02:32.9]} 15. Be3 {[%clk
0:02:19]} 15... Qe5 {[%clk 0:02:25.8]} 16. Rad1 {[%clk 0:02:07.6]} 16... Qh5
{[%clk 0:02:19.9]} 17. Qxh5 {[%clk 0:01:59.1]} 17... Rxh5 {[%clk 0:02:19.1]} 18.
f4 {[%clk 0:01:58.5]} 18... d6 {[%clk 0:02:07.2]} 19. Kf2 {[%clk 0:01:58.4]}
19... f5 {[%clk 0:02:06.6]} 20. e5 {[%clk 0:01:46.5]} 20... dxe5 {[%clk
0:02:05.7]} 21. fxe5 {[%clk 0:01:44.7]} 21... Bc6 {[%clk 0:02:05.6]} 22. Ne2
{[%clk 0:01:11.1]} 22... g5 {[%clk 0:02:04.8]} 23. g4 {[%clk 0:01:08.1]} 23...
fxg4 {[%clk 0:02:04.4]} 24. Ng3 {[%clk 0:01:08.8]} 24... Rh6 {[%clk 0:01:59.3]}
25. Bxg5 {[%clk 0:01:08.8]} 25... Rg6 {[%clk 0:01:58.9]} 26. Bf6 {[%clk
0:01:08.8]} 26... Bf3 {[%clk 0:01:31.6]} 27. Rd3 {[%clk 0:01:07.4]} 27... Be7
{[%clk 0:01:30.9]} 28. Bxe7 {[%clk 0:01:05.8]} 28... Kxe7 {[%clk 0:01:31.8]} 29.
Re1 {[%clk 0:00:46.8]} 29... Rg5 {[%clk 0:01:22.7]} 30. Ree3 {[%clk 0:00:46.6]}
30... Rf8 {[%clk 0:01:19.4]} 31. Ke1 {[%clk 0:00:47.1]} 31... Rf4 {[%clk
0:01:09.8]} 32. b3 {[%clk 0:00:47]} 32... a5 {[%clk 0:01:02.9]} 33. Rd2 {[%clk
0:00:46.3]} 33... a4 {[%clk 0:00:56.3]} 34. Rc2 {[%clk 0:00:40.2]} 34... a3
{[%clk 0:00:54.7]} 35. Rd2 {[%clk 0:00:39.9]} 35... Rd4 {[%clk 0:00:50.7]} 36.
Rxd4 {[%clk 0:00:29.8]} 36... cxd4 {[%clk 0:00:50.7]} 37. Rd3 {[%clk 0:00:30.5]}
37... Rxe5+ {[%clk 0:00:50.4]} 38. Kf2 {[%clk 0:00:24.8]} 38... Be4 {[%clk
0:00:33.7]} 39. Rxd4 {[%clk 0:00:24.3]} 39... Bb1 {[%clk 0:00:33.8]} 40. Rd2
{[%clk 0:00:24.8]} 40... Kf6 {[%clk 0:00:24.8]} 41. Ne2 {[%clk 0:00:23.9]} 41...
Rf5+ {[%clk 0:00:22.9]} 42. Ke1 {[%clk 0:00:21.3]} 42... Rf3 {[%clk 0:00:21.5]}
43. Ng3 {[%clk 0:00:17.8]} 43... Ke5 {[%clk 0:00:17.5]} 44. c5 {[%clk
0:00:12.9]} 44... Rc3 {[%clk 0:00:17.1]} 45. b4 {[%clk 0:00:13.2]} 45... Bd3
{[%clk 0:00:15.4]} 46. Kf2 {[%clk 0:00:12.4]} 46... Bc4 {[%clk 0:00:13.7]} 47.
Ne2 {[%clk 0:00:08.9]} 47... Rf3+ {[%clk 0:00:12.7]} 48. Ke1 {[%clk 0:00:08.8]}
48... Bd5 {[%clk 0:00:11.5]} 49. Ng3 {[%clk 0:00:08.1]} 49... Rc3 {[%clk
0:00:10.9]} 50. Ne2 {[%clk 0:00:07.6]} 50... Rc4 {[%clk 0:00:11.4]} 51. Rd3
{[%clk 0:00:04.1]} 51... Rxb4 {[%clk 0:00:10.7]} 52. Rxa3 {[%clk 0:00:04.9]}
52... Rb1+ {[%clk 0:00:07.8]} 53. Kf2 {[%clk 0:00:04.9]} 53... Rb2 {[%clk
0:00:08]} 54. Re3+ {[%clk 0:00:02.9]} 54... Kf6 {[%clk 0:00:07.7]} 55. Kg3
{[%clk 0:00:02.1]} 55... Bf3 {[%clk 0:00:04.7]} 56. Nf4 {[%clk 0:00:02.6]} 56...
Rxa2 {[%clk 0:00:04.3]} 57. Nxh3 {[%clk 0:00:02.6]} 57... Rg2+ {[%clk
0:00:02.3]} 58. Kf4 {[%clk 0:00:02.9]} 58... e5+ {[%clk 0:00:02.7]} 59. Rxe5
{[%clk 0:00:02.8]} 59... gxh3 {[%clk 0:00:03.6]} 60. Rf5+ {[%clk 0:00:02]} 60...
Kg6 {[%clk 0:00:03.5]} 61. c6 {[%clk 0:00:01.6]} 61... Bxc6 {[%clk 0:00:03.6]}
62. Rc5 {[%clk 0:00:02]} 62... Be8 {[%clk 0:00:03.8]} 63. Re5 {[%clk 0:00:02.2]}
63... Bf7 {[%clk 0:00:04]} 64. Re7 {[%clk 0:00:02.5]} 64... Kf6 {[%clk
0:00:04.1]} 65. Kf3 {[%clk 0:00:02.9]} 65... Kxe7 {[%clk 0:00:03.8]} 0-1

[Event "Early-Titled-Tuesday-Blitz-May-07-2024"]
[Site "Chess.com"]
[Date "2024.05.07"]
[Round "10"]
[White "lefonghua"]
[Black "GMKrikor"]
[Result "1/2-1/2"]
[WhiteElo "2583"]
[BlackElo "2824"]
[TimeControl "180+1"]
[EndTime "10:04:08 PDT"]
[Termination "Game drawn by repetition"]

1. d4 {[%clk 0:03:00.9]} 1... Nf6 {[%clk 0:02:58.4]} 2. c4 {[%clk 0:03:01.2]}
2... g6 {[%clk 0:02:58.4]} 3. Nc3 {[%clk 0:03:01.6]} 3... d5 {[%clk 0:02:58.8]}
4. cxd5 {[%clk 0:03:02.5]} 4... Nxd5 {[%clk 0:02:59.5]} 5. e4 {[%clk 0:03:03.2]}
5... Nxc3 {[%clk 0:03:00]} 6. bxc3 {[%clk 0:03:04.1]} 6... Bg7 {[%clk
0:03:00.4]} 7. Nf3 {[%clk 0:03:04.8]} 7... c5 {[%clk 0:03:01]} 8. Rb1 {[%clk
0:03:05.5]} 8... O-O {[%clk 0:03:00.8]} 9. Be2 {[%clk 0:03:05.7]} 9... Nc6
{[%clk 0:03:01.2]} 10. d5 {[%clk 0:03:02.9]} 10... Ne5 {[%clk 0:03:01.3]} 11.
Nxe5 {[%clk 0:03:02.3]} 11... Bxe5 {[%clk 0:03:02.2]} 12. Qd2 {[%clk 0:03:01.9]}
12... e6 {[%clk 0:03:02.6]} 13. f4 {[%clk 0:03:00.6]} 13... Bc7 {[%clk 0:03:03]}
14. O-O {[%clk 0:02:56.7]} 14... exd5 {[%clk 0:03:03.2]} 15. exd5 {[%clk
0:02:56.3]} 15... Ba5 {[%clk 0:03:03.8]} 16. f5 {[%clk 0:02:47.1]} 16... Bxf5
{[%clk 0:02:18.4]} 17. Rxb7 {[%clk 0:02:46.6]} 17... Qf6 {[%clk 0:01:54.8]} 18.
Bc4 {[%clk 0:02:18.2]} 18... Bxc3 {[%clk 0:01:49.4]} 19. Qf4 {[%clk 0:02:11.9]}
19... Bd4+ {[%clk 0:01:20.9]} 20. Kh1 {[%clk 0:02:01.6]} 20... Be5 {[%clk
0:01:21]} 21. Qh6 {[%clk 0:01:48]} 21... Qg7 {[%clk 0:01:12.5]} 22. Qxg7+ {[%clk
0:01:42.7]} 22... Kxg7 {[%clk 0:01:13.4]} 23. Bg5 {[%clk 0:01:34.4]} 23... Rab8
{[%clk 0:01:07.3]} 24. Rxa7 {[%clk 0:01:30.3]} 24... Rb4 {[%clk 0:01:02.3]} 25.
Be2 {[%clk 0:01:19.6]} 25... Re8 {[%clk 0:00:52.1]} 26. Bf3 {[%clk 0:01:14.3]}
26... Bd3 {[%clk 0:00:44]} 27. Rd1 {[%clk 0:01:09.7]} 27... c4 {[%clk
0:00:44.2]} 28. d6 {[%clk 0:00:53.4]} 28... Bxd6 {[%clk 0:00:35.3]} 29. Bd5
{[%clk 0:00:53.5]} 29... Rf8 {[%clk 0:00:31.9]} 30. Bd2 {[%clk 0:00:42.6]} 30...
Rbb8 {[%clk 0:00:22.3]} 31. Bc3+ {[%clk 0:00:40.5]} 31... Kg8 {[%clk 0:00:22.9]}
32. h4 {[%clk 0:00:22.9]} 32... Bb4 {[%clk 0:00:22.2]} 33. Bf6 {[%clk
0:00:17.1]} 33... Rb6 {[%clk 0:00:19.3]} 34. Be7 {[%clk 0:00:12.5]} 34... Bxe7
{[%clk 0:00:18.2]} 35. Rxe7 {[%clk 0:00:13.4]} 35... Kg7 {[%clk 0:00:15.1]} 36.
Rc7 {[%clk 0:00:12.2]} 36... Rb4 {[%clk 0:00:11.3]} 37. a3 {[%clk 0:00:10.4]}
37... Ra4 {[%clk 0:00:10.9]} 38. Rc1 {[%clk 0:00:11]} 38... Rxa3 {[%clk
0:00:06.3]} 39. Bxc4 {[%clk 0:00:11.3]} 39... Bxc4 {[%clk 0:00:06.8]} 40. R1xc4
{[%clk 0:00:10.8]} 40... Ra5 {[%clk 0:00:06.7]} 41. Rf4 {[%clk 0:00:10.7]} 41...
h5 {[%clk 0:00:05.6]} 42. Kh2 {[%clk 0:00:11.1]} 42... Ra6 {[%clk 0:00:06]} 43.
Kh3 {[%clk 0:00:10.9]} 43... Rf6 {[%clk 0:00:06.6]} 44. Rxf6 {[%clk 0:00:10.9]}
44... Kxf6 {[%clk 0:00:07.5]} 45. g3 {[%clk 0:00:11.4]} 45... Kg7 {[%clk
0:00:07.9]} 46. Rc6 {[%clk 0:00:11.9]} 46... Re8 {[%clk 0:00:08.4]} 47. Rb6
{[%clk 0:00:12.3]} 47... Re5 {[%clk 0:00:08.9]} 48. Rc6 {[%clk 0:00:12.8]} 48...
Kf8 {[%clk 0:00:09.3]} 49. Rb6 {[%clk 0:00:13.2]} 49... Ke7 {[%clk 0:00:09.7]}
50. Ra6 {[%clk 0:00:13.8]} 50... Rd5 {[%clk 0:00:09.5]} 51. Ra7+ {[%clk
0:00:14.2]} 51... Rd7 {[%clk 0:00:09.7]} 52. Ra6 {[%clk 0:00:15.1]} 52... Rd6
{[%clk 0:00:10.3]} 53. Ra7+ {[%clk 0:00:15.6]} 53... Ke6 {[%clk 0:00:11.1]} 54.
Ra5 {[%clk 0:00:16.5]} 54... Kf6 {[%clk 0:00:11.4]} 55. Rb5 {[%clk 0:00:16.8]}
55... Re6 {[%clk 0:00:12.3]} 56. Ra5 {[%clk 0:00:16.6]} 56... Re5 {[%clk
0:00:12.5]} 57. Ra6+ {[%clk 0:00:17.1]} 57... Kf5 {[%clk 0:00:13.2]} 58. Ra7
{[%clk 0:00:17.7]} 58... f6 {[%clk 0:00:13.9]} 59. Ra4 {[%clk 0:00:17.9]} 59...
Re4 {[%clk 0:00:13.7]} 60. Ra5+ {[%clk 0:00:18.4]} 60... Re5 {[%clk 0:00:14.3]}
61. Ra4 {[%clk 0:00:19]} 61... Rd5 {[%clk 0:00:14.9]} 62. Rb4 {[%clk 0:00:19.5]}
62... Ke5 {[%clk 0:00:14.2]} 63. Ra4 {[%clk 0:00:19.9]} 63... Rd4 {[%clk
0:00:13.8]} 64. Ra5+ {[%clk 0:00:20.5]} 64... Ke4 {[%clk 0:00:14]} 65. Ra6
{[%clk 0:00:21.1]} 65... Ke5 {[%clk 0:00:14.6]} 66. Ra5+ {[%clk 0:00:21.3]}
66... Rd5 {[%clk 0:00:15.2]} 67. Ra4 {[%clk 0:00:21.8]} 67... Rc5 {[%clk
0:00:14.5]} 68. Rb4 {[%clk 0:00:22]} 68... Ra5 {[%clk 0:00:14.7]} 69. Rc4 {[%clk
0:00:22.2]} 69... g5 {[%clk 0:00:11.4]} 70. hxg5 {[%clk 0:00:22]} 70... fxg5
{[%clk 0:00:12.3]} 71. Rc2 {[%clk 0:00:22]} 71... Kf5 {[%clk 0:00:12.6]} 72. Kg2
{[%clk 0:00:21.9]} 72... Re5 {[%clk 0:00:12]} 73. Kh3 {[%clk 0:00:20.8]} 73...
Kg6 {[%clk 0:00:08.7]} 74. Rf2 {[%clk 0:00:20]} 74... Rf5 {[%clk 0:00:08.9]} 75.
Rxf5 {[%clk 0:00:18]} 75... Kxf5 {[%clk 0:00:09.2]} 76. g4+ {[%clk 0:00:18.7]}
76... hxg4+ {[%clk 0:00:04.4]} 77. Kg3 {[%clk 0:00:19.1]} 77... Kf6 {[%clk
0:00:03.6]} 78. Kxg4 {[%clk 0:00:20]} 78... Kg6 {[%clk 0:00:03.8]} 79. Kg3
{[%clk 0:00:20.6]} 79... Kf5 {[%clk 0:00:04.3]} 80. Kf3 {[%clk 0:00:21.1]} 80...
g4+ {[%clk 0:00:05.2]} 81. Kg3 {[%clk 0:00:21.6]} 81... Kg5 {[%clk 0:00:06.1]}
82. Kg2 {[%clk 0:00:22.2]} 82... Kf4 {[%clk 0:00:07]} 83. Kf2 {[%clk 0:00:22.8]}
83... g3+ {[%clk 0:00:07.9]} 84. Kg2 {[%clk 0:00:23.4]} 84... Kg4 {[%clk
0:00:08.8]} 85. Kg1 {[%clk 0:00:23.9]} 85... Kf4 {[%clk 0:00:09.5]} 86. Kg2
{[%clk 0:00:24.3]} 86... Kg4 {[%clk 0:00:10.2]} 87. Kg1 {[%clk 0:00:24.9]} 87...
Kh4 {[%clk 0:00:11.1]} 88. Kg2 {[%clk 0:00:25.5]} 88... Kg4 {[%clk 0:00:11.6]}
1/2-1/2

[Event "Early-Titled-Tuesday-Blitz-May-07-2024"]
[Site "Chess.com"]
[Date "2024.05.07"]
[Round "10"]
[White "MagnusCarlsen"]
[Black "kpio91"]
[Result "1-0"]
[WhiteElo "3204"]
[BlackElo "2874"]
[TimeControl "180+1"]
[EndTime "10:04:19 PDT"]
[Termination "MagnusCarlsen won on time"]

1. a4 {[%clk 0:03:00.9]} 1... e5 {[%clk 0:02:50.5]} 2. Ra3 {[%clk 0:02:57.4]}
2... Bxa3 {[%clk 0:02:39.5]} 3. Nxa3 {[%clk 0:02:58.2]} 3... Nf6 {[%clk
0:02:39.3]} 4. b3 {[%clk 0:02:57.5]} 4... O-O {[%clk 0:02:39]} 5. Bb2 {[%clk
0:02:57.8]} 5... Re8 {[%clk 0:02:39.2]} 6. Nc4 {[%clk 0:02:56.5]} 6... Nc6
{[%clk 0:02:38.4]} 7. d3 {[%clk 0:02:46.3]} 7... d5 {[%clk 0:02:36.7]} 8. Nd2
{[%clk 0:02:46.9]} 8... d4 {[%clk 0:02:31.9]} 9. g3 {[%clk 0:02:44.4]} 9... Be6
{[%clk 0:02:23.4]} 10. Bg2 {[%clk 0:02:43.8]} 10... Bd5 {[%clk 0:02:23.8]} 11.
Ngf3 {[%clk 0:02:44.2]} 11... e4 {[%clk 0:02:24.2]} 12. dxe4 {[%clk 0:02:43.7]}
12... Nxe4 {[%clk 0:02:23.9]} 13. Nxe4 {[%clk 0:02:43.1]} 13... Bxe4 {[%clk
0:02:23.2]} 14. O-O {[%clk 0:02:44]} 14... Qd5 {[%clk 0:02:17.8]} 15. Qd2 {[%clk
0:02:42.3]} 15... Rad8 {[%clk 0:02:17]} 16. Rd1 {[%clk 0:02:42.6]} 16... h6
{[%clk 0:02:11.3]} 17. h3 {[%clk 0:02:39.5]} 17... Qc5 {[%clk 0:01:58.8]} 18.
Rc1 {[%clk 0:02:36.8]} 18... Rd6 {[%clk 0:01:55.4]} 19. Qf4 {[%clk 0:02:31.6]}
19... Re7 {[%clk 0:01:41.6]} 20. h4 {[%clk 0:02:18.6]} 20... a5 {[%clk
0:01:37.7]} 21. Qd2 {[%clk 0:02:07.3]} 21... Rd8 {[%clk 0:01:31.1]} 22. Bf1
{[%clk 0:01:56.9]} 22... Qd5 {[%clk 0:01:25.9]} 23. Nh2 {[%clk 0:01:53.3]} 23...
Nb4 {[%clk 0:01:20.8]} 24. c3 {[%clk 0:01:44.9]} 24... dxc3 {[%clk 0:01:10.8]}
25. Qxc3 {[%clk 0:01:44.3]} 25... f6 {[%clk 0:01:03]} 26. Ng4 {[%clk 0:01:44.8]}
26... Rd6 {[%clk 0:01:00]} 27. Qe3 {[%clk 0:01:40.4]} 27... Qe6 {[%clk
0:00:51.6]} 28. Nxh6+ {[%clk 0:01:30.8]} 28... gxh6 {[%clk 0:00:50.9]} 29. Qxh6
{[%clk 0:01:31.7]} 29... Rh7 {[%clk 0:00:47.6]} 30. Qe3 {[%clk 0:01:21.8]} 30...
Nd5 {[%clk 0:00:47.1]} 31. Qd2 {[%clk 0:01:13.9]} 31... Ne7 {[%clk 0:00:32.7]}
32. Qc3 {[%clk 0:01:01.2]} 32... Nf5 {[%clk 0:00:28]} 33. Bh3 {[%clk 0:01:00.3]}
33... Qd5 {[%clk 0:00:21.2]} 34. f3 {[%clk 0:00:54.5]} 34... Nd4 {[%clk
0:00:16.9]} 35. Qxd4 {[%clk 0:00:53]} 35... Qxd4+ {[%clk 0:00:16.9]} 36. Bxd4
{[%clk 0:00:53.9]} 36... Rxd4 {[%clk 0:00:17.3]} 37. fxe4 {[%clk 0:00:54.4]}
37... Rg7 {[%clk 0:00:12.5]} 38. Kf2 {[%clk 0:00:45.8]} 38... Rxe4 {[%clk
0:00:12.8]} 39. Bg2 {[%clk 0:00:46.3]} 39... Rb4 {[%clk 0:00:12.3]} 40. Rc5
{[%clk 0:00:44.1]} 40... c6 {[%clk 0:00:10.1]} 41. Rxa5 {[%clk 0:00:39.7]} 41...
Rxb3 {[%clk 0:00:09.4]} 42. Ra8+ {[%clk 0:00:39.6]} 42... Kf7 {[%clk 0:00:09.1]}
43. Bf3 {[%clk 0:00:40.2]} 43... Ke6 {[%clk 0:00:07.8]} 44. a5 {[%clk
0:00:39.7]} 44... Ra3 {[%clk 0:00:07.1]} 45. h5 {[%clk 0:00:39.9]} 45... Rh7
{[%clk 0:00:05.9]} 46. g4 {[%clk 0:00:40.4]} 46... Kd6 {[%clk 0:00:04.8]} 47.
Be4 {[%clk 0:00:39.9]} 47... Rh6 {[%clk 0:00:02.3]} 48. e3 {[%clk 0:00:37.1]}
48... b5 {[%clk 0:00:01.9]} 49. Rc8 {[%clk 0:00:32.5]} 49... Rxa5 {[%clk
0:00:01.5]} 50. Rxc6+ {[%clk 0:00:32.3]} 50... Ke5 {[%clk 0:00:02.2]} 51. Kf3
{[%clk 0:00:32.5]} 51... Ra1 {[%clk 0:00:02.5]} 52. Rc5+ {[%clk 0:00:32.2]}
52... Kd6 {[%clk 0:00:02.8]} 53. Rxb5 {[%clk 0:00:30.6]} 53... Rf1+ {[%clk
0:00:03.5]} 54. Ke2 {[%clk 0:00:30.7]} 54... Rg1 {[%clk 0:00:04.1]} 55. Bf5
{[%clk 0:00:29.2]} 55... Rh8 {[%clk 0:00:03.3]} 56. Rb6+ {[%clk 0:00:29.3]}
56... Ke7 {[%clk 0:00:03.8]} 57. Rb7+ {[%clk 0:00:27.8]} 57... Kd6 {[%clk
0:00:04.3]} 58. Rf7 {[%clk 0:00:26.3]} 58... Rh6 {[%clk 0:00:04.2]} 59. Kf3
{[%clk 0:00:25.2]} 59... Rf1+ {[%clk 0:00:04]} 60. Ke4 {[%clk 0:00:25.7]} 60...
Ra1 {[%clk 0:00:03.6]} 61. Rd7+ {[%clk 0:00:25.1]} 61... Kc6 {[%clk 0:00:04.2]}
62. Rd4 {[%clk 0:00:25.3]} 62... Rf1 {[%clk 0:00:04.1]} 63. Rd8 {[%clk
0:00:22.7]} 63... Kc7 {[%clk 0:00:04]} 64. Rg8 {[%clk 0:00:21.4]} 64... Kd6
{[%clk 0:00:04.3]} 65. Re8 {[%clk 0:00:21.2]} 65... Rf2 {[%clk 0:00:03.7]} 66.
Re6+ {[%clk 0:00:20.2]} 66... Kc5 {[%clk 0:00:04.2]} 67. Bg6 {[%clk 0:00:19.2]}
67... Rf1 {[%clk 0:00:03.8]} 68. Kd3 {[%clk 0:00:17.3]} 68... Kd5 {[%clk
0:00:03.6]} 69. Bf5 {[%clk 0:00:16.1]} 69... Rf2 {[%clk 0:00:02.6]} 70. e4+
{[%clk 0:00:15.9]} 70... Kc5 {[%clk 0:00:03]} 71. Ke3 {[%clk 0:00:16.8]} 71...
Rf1 {[%clk 0:00:03.1]} 72. Ke2 {[%clk 0:00:16.5]} 72... Rf4 {[%clk 0:00:03]} 73.
e5 {[%clk 0:00:15.1]} 73... Kd5 {[%clk 0:00:01.1]} 74. exf6 {[%clk 0:00:13.4]}
74... Rxf5 {[%clk 0:00:00.6]} 75. gxf5 {[%clk 0:00:12.9]} 75... Rxh5 {[%clk
0:00:01.3]} 76. Ra6 {[%clk 0:00:13.2]} 76... Rxf5 {[%clk 0:00:01.6]} 77. Ra5+
{[%clk 0:00:12.3]} 1-0

[Event "Early-Titled-Tuesday-Blitz-May-07-2024"]
[Site "Chess.com"]
[Date "2024.05.07"]
[Round "10"]
[White "Puzzlebot_1294"]
[Black "gurelediz"]
[Result "1-0"]
[WhiteElo "2683"]
[BlackElo "2953"]
[TimeControl "180+1"]
[EndTime "10:04:21 PDT"]
[Termination "Puzzlebot_1294 won by resignation"]

1. d4 {[%clk 0:03:00.9]} 1... Nf6 {[%clk 0:02:55.1]} 2. Bf4 {[%clk 0:03:00]}
2... e6 {[%clk 0:02:52.7]} 3. e3 {[%clk 0:02:59.8]} 3... c5 {[%clk 0:02:52.5]}
4. Nf3 {[%clk 0:03:00.2]} 4... b6 {[%clk 0:02:46.5]} 5. Nc3 {[%clk 0:02:41.8]}
5... a6 {[%clk 0:02:38.7]} 6. d5 {[%clk 0:02:41.4]} 6... d6 {[%clk 0:02:26.7]}
7. a4 {[%clk 0:02:32.9]} 7... Be7 {[%clk 0:02:21.6]} 8. e4 {[%clk 0:02:31.2]}
8... O-O {[%clk 0:02:21]} 9. Be2 {[%clk 0:02:31.2]} 9... Bb7 {[%clk 0:02:15.6]}
10. O-O {[%clk 0:02:30.5]} 10... exd5 {[%clk 0:02:15.4]} 11. exd5 {[%clk
0:02:31.4]} 11... Nbd7 {[%clk 0:02:15.8]} 12. Re1 {[%clk 0:02:29.8]} 12... Re8
{[%clk 0:02:14.3]} 13. Bf1 {[%clk 0:02:22.1]} 13... Bf8 {[%clk 0:02:07.1]} 14.
Qd3 {[%clk 0:02:17.8]} 14... Qc7 {[%clk 0:02:02]} 15. Nd2 {[%clk 0:02:15.8]}
15... Rad8 {[%clk 0:01:42.1]} 16. Nc4 {[%clk 0:02:12.4]} 16... h6 {[%clk
0:01:31.1]} 17. Bg3 {[%clk 0:01:47.1]} 17... Ba8 {[%clk 0:01:27]} 18. Ne3 {[%clk
0:01:44.6]} 18... Bb7 {[%clk 0:01:25.3]} 19. Nf5 {[%clk 0:01:39]} 19... g6
{[%clk 0:01:22.3]} 20. Ne3 {[%clk 0:01:36.6]} 20... Ne5 {[%clk 0:01:19.8]} 21.
Qd2 {[%clk 0:01:21]} 21... Bg7 {[%clk 0:01:07.5]} 22. Rad1 {[%clk 0:01:16.7]}
22... Re7 {[%clk 0:01:02.1]} 23. Bxe5 {[%clk 0:00:56.3]} 23... Rxe5 {[%clk
0:01:01.7]} 24. Nc4 {[%clk 0:00:53.8]} 24... Rxe1 {[%clk 0:01:01.9]} 25. Rxe1
{[%clk 0:00:53.7]} 25... Bc8 {[%clk 0:00:53.3]} 26. Qf4 {[%clk 0:00:42.6]} 26...
Bb7 {[%clk 0:00:49.8]} 27. Ne3 {[%clk 0:00:31.1]} 27... Re8 {[%clk 0:00:46.5]}
28. Rd1 {[%clk 0:00:31.2]} 28... Bc8 {[%clk 0:00:23.7]} 29. Nc4 {[%clk
0:00:27.9]} 29... Rd8 {[%clk 0:00:24.1]} 30. Re1 {[%clk 0:00:22.2]} 30... Kh7
{[%clk 0:00:20.8]} 31. Qe3 {[%clk 0:00:18.1]} 31... Bb7 {[%clk 0:00:19]} 32. Qd2
{[%clk 0:00:15.6]} 32... Ba8 {[%clk 0:00:17.5]} 33. Ne3 {[%clk 0:00:15.2]} 33...
Qc8 {[%clk 0:00:16.6]} 34. Qd3 {[%clk 0:00:13.7]} 34... Bb7 {[%clk 0:00:16.1]}
35. Nc4 {[%clk 0:00:13.7]} 35... Qc7 {[%clk 0:00:16]} 36. Ne3 {[%clk 0:00:12.4]}
36... Re8 {[%clk 0:00:15.7]} 37. Qd2 {[%clk 0:00:12.5]} 37... Nd7 {[%clk
0:00:14.5]} 38. Rd1 {[%clk 0:00:10.3]} 38... Ne5 {[%clk 0:00:13.8]} 39. Ne2
{[%clk 0:00:07.9]} 39... b5 {[%clk 0:00:13]} 40. axb5 {[%clk 0:00:07.6]} 40...
axb5 {[%clk 0:00:13.9]} 41. Ng3 {[%clk 0:00:07.7]} 41... c4 {[%clk 0:00:11.3]}
42. Qb4 {[%clk 0:00:07]} 42... Qd7 {[%clk 0:00:06.4]} 43. b3 {[%clk 0:00:06.1]}
43... Rc8 {[%clk 0:00:05]} 44. bxc4 {[%clk 0:00:06.4]} 44... bxc4 {[%clk
0:00:05.9]} 45. Rb1 {[%clk 0:00:06.3]} 45... Ba8 {[%clk 0:00:04.8]} 46. Qa5
{[%clk 0:00:05.9]} 46... Qe7 {[%clk 0:00:04]} 47. Ra1 {[%clk 0:00:05.6]} 47...
f5 {[%clk 0:00:04.1]} 48. Nd1 {[%clk 0:00:03.5]} 48... f4 {[%clk 0:00:03.1]} 49.
Ne4 {[%clk 0:00:02.9]} 49... Ng4 {[%clk 0:00:03.6]} 50. f3 {[%clk 0:00:02.5]}
50... Bxa1 {[%clk 0:00:02.7]} 51. Qxa1 {[%clk 0:00:03.4]} 51... Ne5 {[%clk
0:00:03.3]} 52. Ndc3 {[%clk 0:00:02.3]} 52... Qc7 {[%clk 0:00:03.3]} 53. Qd1
{[%clk 0:00:01.9]} 53... Qb6+ {[%clk 0:00:03.4]} 54. Kh1 {[%clk 0:00:02.5]}
54... Rb8 {[%clk 0:00:03.4]} 55. Nf6+ {[%clk 0:00:02.5]} 55... Kg7 {[%clk
0:00:03.2]} 56. Nfe4 {[%clk 0:00:03.4]} 56... Qe3 {[%clk 0:00:02.7]} 57. Qa1
{[%clk 0:00:03.5]} 57... Kh7 {[%clk 0:00:01.8]} 58. Qa5 {[%clk 0:00:03.1]} 58...
Qe1 {[%clk 0:00:01.4]} 59. Qc7+ {[%clk 0:00:03.2]} 59... Kg8 {[%clk 0:00:02]}
60. Qxb8+ {[%clk 0:00:03.6]} 60... Kf7 {[%clk 0:00:02.9]} 61. Qc7+ {[%clk
0:00:04.2]} 61... Kg8 {[%clk 0:00:03.1]} 62. Nf6+ {[%clk 0:00:03.8]} 62... Kf8
{[%clk 0:00:03.5]} 63. Qxd6+ {[%clk 0:00:03.9]} 63... Kf7 {[%clk 0:00:03.9]} 64.
Qe6+ {[%clk 0:00:04.4]} 64... Kf8 {[%clk 0:00:02.6]} 65. Qe8+ {[%clk 0:00:02.1]}
65... Kg7 {[%clk 0:00:03.1]} 66. Qe7+ {[%clk 0:00:02.8]} 66... Nf7 {[%clk
0:00:03.7]} 67. Qxe1 {[%clk 0:00:02]} 67... Kxf6 {[%clk 0:00:04.6]} 68. Qe2
{[%clk 0:00:01.5]} 68... Bxd5 {[%clk 0:00:05.5]} 69. Qd2 {[%clk 0:00:02.4]}
69... Be6 {[%clk 0:00:06]} 70. Qd1 {[%clk 0:00:03.3]} 70... Ke7 {[%clk
0:00:06.9]} 71. Qd4 {[%clk 0:00:04.2]} 71... Ne5 {[%clk 0:00:07.8]} 72. Ne4
{[%clk 0:00:05]} 72... Nc6 {[%clk 0:00:08.7]} 73. Qc5+ {[%clk 0:00:05.7]} 73...
Kd7 {[%clk 0:00:09.3]} 74. Qd6+ {[%clk 0:00:06.6]} 74... Kc8 {[%clk 0:00:09.4]}
75. Nc5 {[%clk 0:00:07.5]} 75... Bf5 {[%clk 0:00:08.2]} 76. Qxc6+ {[%clk
0:00:07.8]} 1-0